bitfinex/quotes_SOLUSD_20230113
["timestamp","ask_amount","ask_price","bid_price","bid_amount"]
[1673633581772,3.64703216,16.852,16.841,28.1360024]
[1673633582110,44.51,16.851,16.841,28.1360024]
[1673633582306,3.64703216,16.85,16.841,28.1360024]
[1673633582730,3.64703216,16.854,16.841,28.1360024]
[1673633583048,23.64703216,16.852,16.841,28.1360024]
[1673633583255,3.64703216,16.85,16.841,28.1360024]
[1673633584625,23.64703216,16.854,16.841,28.1360024]
[1673633584835,44.51,16.853,16.841,28.1360024]
[1673633585046,3.64703216,16.852,16.841,28.1360024]
[1673633585878,3.64703216,16.854,16.84,80.33]
[1673633586084,23.64703216,16.854,16.841,28.1360024]
[1673633586627,3.64703216,16.852,16.84,80.33]
[1673633586815,3.64703216,16.85,16.84,16.13]
[1673633588723,3.64703216,16.852,16.84,16.13]
[1673633588915,23.64703216,16.852,16.84,16.13]
[1673633589130,222.81,16.851,16.831,35.57211231]
[1673633589457,24.15504448,16.85,16.83,196.9796]
[1673633589665,4.15504448,16.848,16.83,196.9796]
[1673633589870,4.15504448,16.846,16.83,196.9796]
[1673633590081,4.15504448,16.844,16.83,225.1156024]
[1673633590280,4.15504448,16.842,16.83,225.1156024]
[1673633590496,4.15504448,16.846,16.83,225.1156024]
[1673633590706,4.15504448,16.844,16.83,225.1156024]
[1673633590933,4.15504448,16.842,16.83,161.2656024]
[1673633591369,4.15504448,16.844,16.83,161.2656024]
[1673633591686,4.15504448,16.842,16.83,133.1296]
[1673633592524,4.15504448,16.842,16.823,31.44179581]
[1673633592737,44.54,16.841,16.824,28.1360024]
[1673633592958,44.15504448,16.84,16.824,28.1360024]
[1673633593138,44.54,16.839,16.822,119.1791]
[1673633593348,24.15504448,16.838,16.822,119.1791]
[1673633593558,44.55,16.837,16.822,119.1791]
[1673633593770,4.15504448,16.836,16.822,119.1791]
[1673633593980,44.56,16.835,16.822,119.1791]
[1673633594300,44.56,16.835,16.823,28.1360024]
[1673633594301,4.15504448,16.834,16.823,28.1360024]
[1673633594724,4.15504448,16.836,16.823,28.1360024]
[1673633595678,4.15504448,16.834,16.823,28.1360024]
[1673633595994,4.15504448,16.836,16.824,20.0]
[1673633596208,4.15504448,16.837,16.83,15.96]
[1673633596416,4.15504448,16.84,16.83,15.96]
[1673633596824,24.15504448,16.84,16.83,15.96]
[1673633597037,64.54,16.839,16.83,15.96]
[1673633597248,24.15504448,16.838,16.83,15.96]
[1673633597454,61.55,16.837,16.83,15.96]
[1673633597782,4.15504448,16.836,16.83,15.96]
[1673633598922,24.15504448,16.836,16.83,15.96]
[1673633599884,4.15504448,16.834,16.83,15.96]
[1673633600095,4.15504448,16.835,16.822,139.1791]
[1673633600280,4.15504448,16.836,16.83,15.94]
[1673633601557,24.15504448,16.836,16.83,15.94]
[1673633602089,4.15504448,16.836,16.83,15.94]
[1673633602803,24.15504448,16.836,16.83,15.94]
[1673633603016,4.15504448,16.834,16.83,15.94]
[1673633603228,4.15504448,16.835,16.822,119.1791]
[1673633603451,4.15504448,16.835,16.821,110.8457]
[1673633603673,4.15504448,16.835,16.822,28.1360024]
[1673633603880,20.0,16.833,16.821,110.8457]
[1673633604091,48.71504448,16.832,16.821,110.8457]
[1673633604282,20.0,16.831,16.821,110.8457]
[1673633604504,4.15504448,16.83,16.821,110.8457]
[1673633605013,4.15504448,16.83,16.82,16.15]
[1673633607031,48.72504448,16.83,16.815,20.0]
[1673633607246,48.72504448,16.83,16.815,40.0]
[1673633608296,4.15504448,16.83,16.816,28.1360024]
[1673633608499,4.15504448,16.834,16.817,20.0]
[1673633608909,44.56,16.833,16.818,28.1360024]
[1673633609118,4.15504448,16.832,16.82,15.94]
[1673633609438,4.15504448,16.834,16.82,44.0760024]
[1673633609646,4.15504448,16.832,16.82,44.0760024]
[1673633609977,4.15504448,16.834,16.82,108.1660024]
[1673633610194,64.55,16.838,16.821,128.5108]
[1673633610502,20.0,16.838,16.822,28.1360024]
[1673633610931,20.0,16.838,16.821,111.5108]
[1673633611979,17.0,16.837,16.821,111.5108]
[1673633612200,17.0,16.837,16.822,20.0]
[1673633612719,20.0,16.838,16.823,28.1360024]
[1673633613032,20.0,16.838,16.83,16.01]
[1673633614282,17.0,16.837,16.83,16.01]
[1673633614494,17.0,16.837,16.821,111.5108]
[1673633615750,37.0,16.837,16.821,111.5108]
[1673633615959,44.55,16.836,16.821,111.5108]
[1673633616487,44.55,16.836,16.82,44.1260024]
[1673633616723,222.85,16.836,16.82,15.99]
[1673633616910,22.44794063,16.835,16.82,15.99]
[1673633617125,44.56,16.834,16.82,15.99]
[1673633617651,2.40034672,16.833,16.82,15.99]
[1673633617850,44.56,16.832,16.82,15.99]
[1673633618062,44.56,16.834,16.82,15.99]
[1673633618806,20.0,16.833,16.82,15.99]
[1673633619019,2.39612596,16.831,16.82,15.99]
[1673633620268,44.56,16.832,16.82,15.99]
[1673633620483,44.56,16.834,16.82,15.99]
[1673633622273,44.55,16.836,16.82,44.1260024]
[1673633623314,17.0,16.835,16.82,44.1260024]
[1673633623521,44.56,16.834,16.82,44.1260024]
[1673633623946,44.55,16.836,16.82,44.1260024]
[1673633624168,44.55,16.836,16.821,116.9778]
[1673633625965,44.55,16.837,16.821,116.9778]
[1673633631741,44.55,16.837,16.822,20.0]
[1673633632137,114.1134,16.839,16.823,17.0]
[1673633632352,44.53,16.845,16.83,15.95]
[1673633632563,290.1317,16.848,16.83,15.95]
[1673633632564,163.7755,16.846,16.83,15.95]
[1673633632991,163.7755,16.846,16.82,80.03]
[1673633632992,20.0,16.845,16.82,80.03]
[1673633633187,178.3,16.843,16.82,80.03]
[1673633633398,20.0,16.841,16.82,80.03]
[1673633633629,64.54,16.84,16.82,80.03]
[1673633634248,226.493,16.839,16.82,80.03]
[1673633634457,64.55,16.838,16.82,80.03]
[1673633635628,242.85,16.838,16.82,80.03]
[1673633635839,242.85,16.838,16.82,15.99]
[1673633636264,20.0,16.837,16.82,15.99]
[1673633636481,20.0,16.835,16.82,15.99]
[1673633636689,44.56,16.834,16.82,15.99]
[1673633637104,44.56,16.835,16.82,15.99]
[1673633637636,44.55,16.836,16.82,15.99]
[1673633638163,44.55,16.837,16.82,15.99]
[1673633638377,20.0,16.836,16.82,15.99]
[1673633638691,20.0,16.834,16.82,15.99]
[1673633638891,64.56,16.833,16.82,15.99]
[1673633643834,20.0,16.832,16.813,114.2778]
[1673633644030,20.0,16.83,16.813,114.2778]
[1673633644241,64.57,16.829,16.813,114.2778]
[1673633644452,64.57,16.829,16.814,20.0]
[1673633645715,44.56,16.834,16.82,15.95]
[1673633645923,155.0106,16.837,16.82,15.95]
[1673633646692,155.0106,16.837,16.821,108.75]
[1673633646896,17.0,16.836,16.821,108.75]
[1673633647110,44.56,16.835,16.821,108.75]
[1673633647506,44.55,16.836,16.821,108.75]
[1673633648577,64.55,16.836,16.821,108.75]
[1673633648774,44.55,16.836,16.821,108.75]
[1673633649420,44.55,16.836,16.82,15.95]
[1673633649421,20.0,16.835,16.82,15.95]
[1673633649614,44.56,16.834,16.82,15.95]
[1673633650900,44.56,16.834,16.82,11.94]
[1673633652572,44.56,16.834,16.81,60.24]
[1673633652893,40.0,16.833,16.813,114.2778]
[1673633653087,44.56,16.832,16.813,114.2778]
[1673633653291,20.0,16.831,16.813,114.2778]
[1673633653504,44.57,16.83,16.813,114.2778]
[1673633653739,20.0,16.829,16.813,114.2778]
[1673633653946,44.57,16.828,16.82,12.04]
[1673633655076,64.57,16.829,16.82,12.04]
[1673633657198,20.0,16.829,16.82,12.04]
[1673633658787,44.55,16.836,16.82,60.34]
[1673633659598,44.55,16.836,16.821,117.881]
[1673633660016,17.0,16.835,16.821,117.881]
[1673633660224,44.56,16.834,16.821,117.881]
[1673633660549,44.56,16.834,16.822,20.0]
[1673633660757,44.55,16.836,16.821,117.881]
[1673633661801,17.0,16.835,16.821,117.881]
[1673633663390,17.0,16.835,16.822,20.0]
[1673633664006,110.4606,16.837,16.822,20.0]
[1673633665284,112.0333,16.839,16.822,20.0]
[1673633665490,20.0,16.838,16.822,20.0]
[1673633665704,44.55,16.837,16.822,20.0]
[1673633666131,20.0,16.838,16.822,20.0]
[1673633666574,17.0,16.837,16.821,167.41235586]
[1673633666784,17.0,16.837,16.822,17.0]
[1673633667397,17.0,16.837,16.821,117.881]
[1673633667613,44.55,16.836,16.821,117.881]
[1673633668047,17.0,16.835,16.821,117.881]
[1673633668236,44.56,16.834,16.821,117.881]
[1673633668446,20.0,16.836,16.821,117.881]
[1673633668674,44.56,16.835,16.821,117.881]
[1673633669302,20.0,16.834,16.82,12.1]
[1673633669521,44.56,16.833,16.82,12.1]
[1673633670343,44.56,16.835,16.82,12.1]
[1673633671513,44.55,16.836,16.821,29.53135586]
[1673633671701,44.55,16.837,16.821,169.88491172]
[1673633672040,44.55,16.837,16.822,20.0]
[1673633673386,17.0,16.836,16.822,20.0]
[1673633673596,44.56,16.835,16.822,49.53135586]
[1673633673807,64.55,16.838,16.822,49.53135586]
[1673633675399,64.55,16.838,16.822,29.53135586]
[1673633676454,20.0,16.838,16.822,29.53135586]
[1673633676669,64.55,16.838,16.822,29.53135586]
[1673633676996,64.55,16.838,16.821,110.8222]
[1673633678145,84.55,16.838,16.821,110.8222]
[1673633679091,20.0,16.837,16.821,110.8222]
[1673633679306,44.55,16.836,16.821,110.8222]
[1673633679829,17.0,16.835,16.821,110.8222]
[1673633680018,44.56,16.834,16.821,110.8222]
[1673633680442,44.55,16.836,16.821,110.8222]
[1673633682463,44.55,16.837,16.821,110.8222]
[1673633682650,44.55,16.837,16.822,20.0]
[1673633682867,20.0,16.838,16.822,20.0]
[1673633683188,20.0,16.838,16.822,49.53135586]
[1673633683381,112.0333,16.839,16.822,49.53135586]
[1673633683714,46.18202505,16.844,16.83,60.23]
[1673633683936,43.66792373,16.845,16.83,60.23]
[1673633684241,43.66792373,16.845,16.831,49.53135586]
[1673633684438,43.66792373,16.845,16.832,20.0]
[1673633684645,242.8,16.856,16.832,75.05843522]
[1673633684646,119.7433,16.855,16.832,75.05843522]
[1673633684860,44.51,16.854,16.84,12.04]
[1673633685484,119.7433,16.855,16.84,12.04]
[1673633687272,44.5,16.856,16.841,29.53135586]
[1673633687481,208.2691928,16.862,16.841,29.53135586]
[1673633687704,44.5,16.856,16.84,60.15]
[1673633688543,64.5,16.856,16.84,60.15]
[1673633688976,17.0,16.855,16.84,60.15]
[1673633689618,17.0,16.855,16.84,89.68135586]
[1673633690138,20.0,16.861,16.84,89.68135586]
[1673633690139,44.49,16.86,16.84,89.68135586]
[1673633690453,44.49,16.86,16.841,20.0]
[1673633690874,44.49,16.86,16.842,29.53135586]
[1673633691402,61.5,16.856,16.84,60.15]
[1673633691813,44.49,16.86,16.85,12.04]
[1673633692030,44.48,16.862,16.85,12.04]
[1673633692233,20.0,16.861,16.85,12.04]
[1673633692550,44.49,16.86,16.85,12.04]
[1673633692745,20.0,16.859,16.85,12.04]
[1673633693164,44.48,16.862,16.85,60.2]
[1673633693399,116.9066,16.863,16.85,60.2]
[1673633693400,116.9066,16.863,16.85,60.22]
[1673633695390,116.9066,16.863,16.85,12.07]
[1673633695597,116.9066,16.863,16.84,60.21]
[1673633695812,20.0,16.861,16.84,60.21]
[1673633696003,222.79,16.86,16.84,60.21]
[1673633696209,20.0,16.859,16.84,60.21]
[1673633696424,44.49,16.858,16.84,60.21]
[1673633696642,20.0,16.857,16.84,60.21]
[1673633696846,44.5,16.856,16.84,60.21]
[1673633697793,44.5,16.856,16.841,46.53135586]
[1673633698219,44.5,16.856,16.842,29.53135586]
[1673633698864,17.0,16.855,16.84,60.21]
[1673633699072,44.51,16.854,16.84,60.21]
[1673633699495,44.5,16.855,16.84,60.21]
[1673633700647,44.5,16.855,16.841,29.53135586]
[1673633700868,44.5,16.856,16.842,17.0]
[1673633701697,44.5,16.856,16.841,29.53135586]
[1673633701892,44.5,16.856,16.84,60.21]
[1673633702854,20.0,16.855,16.84,60.21]
[1673633703084,44.51,16.854,16.84,60.21]
[1673633703260,44.51,16.854,16.84,12.05]
[1673633703680,20.0,16.853,16.84,12.05]
[1673633703922,44.51,16.852,16.84,12.05]
[1673633707256,44.51,16.852,16.831,116.3166]
[1673633707257,20.0,16.851,16.831,116.3166]
[1673633707466,178.3,16.849,16.83,169.4986]
[1673633707682,20.0,16.847,16.83,169.4986]
[1673633707899,44.53,16.846,16.83,169.4986]
[1673633708119,20.0,16.845,16.83,121.3186]
[1673633708441,44.53,16.844,16.83,121.3186]
[1673633709910,44.53,16.844,16.83,12.05]
[1673633710308,20.0,16.843,16.821,109.6921]
[1673633710524,44.54,16.842,16.821,109.6921]
[1673633710853,40.0,16.841,16.821,109.6921]
[1673633711044,44.54,16.84,16.821,109.6921]
[1673633711257,20.0,16.839,16.821,109.6921]
[1673633711466,44.55,16.838,16.821,109.6921]
[1673633711677,20.0,16.837,16.821,109.6921]
[1673633711891,44.55,16.836,16.821,139.22345586]
[1673633712104,44.55,16.838,16.822,37.0]
[1673633712428,44.55,16.838,16.822,46.53135586]
[1673633714946,20.0,16.837,16.822,29.53135586]
[1673633715150,44.55,16.836,16.822,29.53135586]
[1673633715683,44.55,16.838,16.822,29.53135586]
[1673633716712,2.3724277,16.837,16.822,29.53135586]
[1673633716918,44.55,16.836,16.822,29.53135586]
[1673633717347,2.34413045,16.837,16.822,29.53135586]
[1673633717560,44.55,16.836,16.822,29.53135586]
[1673633718081,44.55,16.838,16.822,29.53135586]
[1673633718715,2.37792545,16.837,16.822,29.53135586]
[1673633719030,44.55,16.836,16.822,29.53135586]
[1673633719240,44.55,16.838,16.822,29.53135586]
[1673633722831,44.55,16.838,16.821,109.6921]
[1673633723021,44.55,16.838,16.821,139.22345586]
[1673633723463,64.55,16.838,16.821,139.22345586]
[1673633723774,44.55,16.838,16.821,139.22345586]
[1673633724620,44.55,16.838,16.821,109.6921]
[1673633724621,19.91016623,16.837,16.821,109.6921]
[1673633724830,44.55,16.836,16.821,109.6921]
[1673633727008,44.55,16.838,16.821,139.22345586]
[1673633728929,222.85,16.838,16.82,15.99]
[1673633729142,2.43539424,16.837,16.82,15.99]
[1673633729325,44.55,16.836,16.82,15.99]
[1673633729657,178.3,16.838,16.82,15.99]
[1673633729658,20.0,16.835,16.82,15.99]
[1673633729872,44.56,16.834,16.82,15.99]
[1673633731432,44.55,16.836,16.82,15.99]
[1673633731755,2.3913747,16.835,16.82,15.99]
[1673633731964,44.56,16.834,16.82,15.99]
[1673633732290,20.0,16.833,16.82,15.99]
[1673633732608,44.56,16.832,16.82,15.99]
[1673633733335,20.0,16.833,16.82,15.99]
[1673633733550,44.56,16.834,16.82,15.99]
[1673633734377,44.55,16.836,16.82,45.52135586]
[1673633734589,44.55,16.837,16.82,45.52135586]
[1673633735108,44.55,16.838,16.822,20.0]
[1673633735446,44.55,16.838,16.823,29.53135586]
[1673633735847,20.0,16.837,16.823,29.53135586]
[1673633736178,20.0,16.837,16.821,117.6674]
[1673633736179,20.0,16.835,16.821,147.19875586]
[1673633736384,44.56,16.834,16.821,147.19875586]
[1673633736600,20.0,16.835,16.821,147.19875586]
[1673633737037,44.56,16.834,16.82,80.11]
[1673633737221,44.56,16.834,16.82,15.96]
[1673633737427,20.0,16.833,16.82,15.96]
[1673633737637,44.56,16.832,16.82,15.96]
[1673633739527,44.56,16.832,16.815,29.53135586]
[1673633739528,2.39897351,16.83,16.815,29.53135586]
[1673633739759,22.39897351,16.83,16.815,29.53135586]
[1673633739960,139.37767351,16.83,16.815,29.53135586]
[1673633740279,139.37767351,16.83,16.813,119.9048]
[1673633740699,139.37767351,16.83,16.814,29.53135586]
[1673633741322,136.9787,16.83,16.814,29.53135586]
[1673633741631,157.8184,16.832,16.82,16.04]
[1673633741838,113.2584,16.832,16.82,16.04]
[1673633742049,113.2584,16.832,16.82,45.57135586]
[1673633744883,64.57,16.831,16.82,16.04]
[1673633745241,2.35158,16.83,16.82,16.04]
[1673633745426,20.0,16.831,16.82,16.04]
[1673633745639,44.57,16.83,16.82,16.04]
[1673633745952,20.0,16.829,16.82,16.04]
[1673633746358,40.0,16.829,16.813,119.9048]
[1673633746570,47.00276385,16.828,16.813,119.9048]
[1673633746891,44.57,16.828,16.813,119.9048]
[1673633747109,2.40474984,16.827,16.813,119.9048]
[1673633747313,2.40474984,16.827,16.813,149.43615586]
[1673633747522,44.57,16.828,16.813,149.43615586]
[1673633748667,2.37403912,16.827,16.82,16.04]
[1673633748893,20.0,16.829,16.82,16.04]
[1673633749100,2.3691439,16.828,16.82,16.04]
[1673633749307,2.48541712,16.828,16.82,16.04]
[1673633749941,44.57,16.829,16.82,16.04]
[1673633749942,44.56,16.833,16.821,29.53135586]
[1673633750155,44.56,16.835,16.821,29.53135586]
[1673633750992,44.56,16.835,16.82,80.26]
[1673633751523,44.56,16.835,16.82,15.99]
[1673633752141,44.57,16.831,16.82,15.99]
[1673633753289,44.56,16.835,16.821,29.53135586]
[1673633756766,44.56,16.835,16.822,20.0]
[1673633756983,44.55,16.838,16.821,29.53135586]
[1673633757304,20.0,16.837,16.821,138.83615586]
[1673633757505,44.55,16.836,16.821,138.83615586]
[1673633757717,20.0,16.835,16.821,138.83615586]
[1673633757936,44.56,16.834,16.821,138.83615586]
[1673633758656,44.56,16.834,16.821,109.3048]
[1673633759931,20.0,16.833,16.821,109.3048]
[1673633760143,44.56,16.832,16.821,109.3048]
[1673633762151,20.0,16.835,16.821,109.3048]
[1673633762152,44.56,16.834,16.821,109.3048]
[1673633765916,44.55,16.836,16.821,109.3048]
[1673633766131,20.0,16.835,16.813,166.31123504]
[1673633766334,225.26633696,16.834,16.813,119.9048]
[1673633766541,2.40633696,16.832,16.813,119.9048]
[1673633766754,2.45535455,16.83,16.813,119.9048]
[1673633766958,2.45535455,16.83,16.81,80.1]
[1673633766959,2.47965986,16.827,16.81,80.1]
[1673633767168,2.54353137,16.825,16.81,80.1]
[1673633767373,2.54353137,16.823,16.81,80.1]
[1673633767817,47.14720729,16.825,16.81,80.1]
[1673633768234,44.58,16.825,16.81,80.1]
[1673633768431,44.58,16.827,16.81,80.1]
[1673633768763,44.58,16.827,16.81,109.63135586]
[1673633768948,44.57,16.828,16.81,80.1]
[1673633769289,113.3738,16.83,16.81,80.1]
[1673633769290,44.57,16.829,16.813,29.53135586]
[1673633769600,20.0,16.828,16.813,29.53135586]
[1673633769805,44.58,16.827,16.813,29.53135586]
[1673633770866,44.57,16.829,16.82,16.04]
[1673633771053,112.8473,16.836,16.82,16.04]
[1673633771798,44.56,16.835,16.82,16.04]
[1673633772022,64.56,16.835,16.82,16.04]
[1673633773177,44.56,16.835,16.82,16.04]
[1673633774744,64.56,16.835,16.82,16.04]
[1673633775293,44.56,16.835,16.82,16.04]
[1673633775681,64.56,16.835,16.82,16.04]
[1673633775888,44.56,16.835,16.82,16.04]
[1673633779283,20.0,16.834,16.82,16.04]
[1673633779480,44.56,16.833,16.813,35.30155455]
[1673633779682,42.47795183,16.832,16.813,35.30155455]
[1673633779904,42.47795183,16.832,16.811,29.53135586]
[1673633779905,222.87,16.831,16.811,29.53135586]
[1673633780126,20.0,16.83,16.81,134.3633]
[1673633780445,2.34719715,16.828,16.81,134.3633]
[1673633780635,2.42047446,16.826,16.81,134.3633]
[1673633780846,44.58,16.825,16.813,20.0]
[1673633781055,44.57,16.828,16.813,20.0]
[1673633782018,44.57,16.828,16.811,20.0]
[1673633782538,44.57,16.828,16.812,147.07565586]
[1673633783065,44.57,16.828,16.813,20.0]
[1673633784324,44.57,16.828,16.812,147.07565586]
[1673633785268,44.57,16.828,16.813,20.0]
[1673633787273,44.57,16.828,16.814,17.0]
[1673633787459,156.192,16.829,16.814,17.0]
[1673633787669,20.0,16.828,16.816,20.0]
[1673633787878,44.55,16.836,16.82,16.02]
[1673633789786,44.55,16.836,16.821,29.53135586]
[1673633790627,44.55,16.836,16.821,142.04855586]
[1673633790838,44.55,16.836,16.822,37.0]
[1673633791057,44.55,16.836,16.822,66.53135586]
[1673633791266,44.55,16.836,16.823,29.53135586]
[1673633791460,44.55,16.836,16.824,17.0]
[1673633791670,44.55,16.836,16.825,20.0]
[1673633793367,44.55,16.836,16.824,46.53135586]
[1673633794335,44.55,16.838,16.824,46.53135586]
[1673633794643,44.55,16.838,16.83,16.04]
[1673633795169,111.2688,16.843,16.83,45.57135586]
[1673633795572,111.2688,16.843,16.831,20.0]
[1673633795778,44.52,16.847,16.831,20.0]
[1673633795993,44.52,16.847,16.831,49.53135586]
[1673633796219,44.52,16.847,16.832,17.0]
[1673633796623,44.52,16.847,16.833,20.0]
[1673633797256,44.52,16.847,16.83,236.09643869]
[1673633797481,161.8161,16.847,16.83,16.2]
[1673633797678,20.0,16.846,16.83,16.2]
[1673633797889,44.53,16.845,16.83,16.2]
[1673633798732,20.0,16.844,16.83,16.2]
[1673633798940,44.53,16.843,16.83,16.2]
[1673633801775,44.53,16.845,16.83,16.2]
[1673633802108,44.53,16.846,16.83,16.2]
[1673633802732,44.53,16.846,16.83,80.38]
[1673633803158,44.53,16.846,16.83,218.50505586]
[1673633803582,44.53,16.846,16.831,20.0]
[1673633806928,44.53,16.846,16.831,49.53135586]
[1673633810516,44.53,16.846,16.831,29.53135586]
[1673633810710,44.53,16.846,16.83,188.9737]
[1673633810919,44.53,16.846,16.83,218.50505586]
[1673633811557,44.53,16.846,16.831,20.0]
[1673633812187,44.53,16.846,16.831,49.53135586]
[1673633814597,117.2961,16.847,16.831,49.53135586]
[1673633815018,161.8161,16.847,16.831,49.53135586]
[1673633817046,161.8161,16.847,16.83,124.5737]
[1673633817469,161.8161,16.847,16.83,154.10505586]
[1673633823244,161.8161,16.847,16.83,218.26505586]
[1673633823453,44.52,16.847,16.831,37.0]
[1673633823655,44.51,16.852,16.831,37.0]
[1673633823861,44.52,16.847,16.832,29.53135586]
[1673633824074,44.52,16.847,16.833,17.0]
[1673633824393,44.52,16.847,16.834,29.53135586]
[1673633824933,44.51,16.851,16.834,29.53135586]
[1673633825866,44.51,16.851,16.835,20.0]
[1673633826289,44.51,16.851,16.834,29.53135586]
[1673633826615,44.52,16.847,16.834,29.53135586]
[1673633827020,44.51,16.851,16.834,29.53135586]
[1673633827352,44.51,16.851,16.835,17.0]
[1673633827773,44.51,16.851,16.836,29.53135586]
[1673633828620,44.51,16.851,16.831,20.0]
[1673633828808,44.52,16.847,16.831,29.53135586]
[1673633833131,44.52,16.847,16.832,20.0]
[1673633833452,44.52,16.847,16.831,29.53135586]
[1673633833647,44.52,16.847,16.831,49.53135586]
[1673633834611,44.52,16.847,16.832,20.0]
[1673633836597,44.52,16.847,16.831,29.53135586]
[1673633838269,44.52,16.847,16.83,213.65054819]
[1673633839139,44.52,16.847,16.83,243.18190405]
[1673633842385,44.52,16.847,16.83,213.65054819]
[1673633842795,44.52,16.847,16.83,243.18190405]
[1673633843113,44.52,16.847,16.83,182.92190405]
[1673633843330,44.52,16.847,16.83,243.18190405]
[1673633844278,44.52,16.85,16.831,20.0]
[1673633844593,44.52,16.847,16.831,20.0]
[1673633844992,44.52,16.847,16.83,243.18190405]
[1673633846152,20.0,16.846,16.83,198.38505586]
[1673633846367,44.53,16.845,16.83,198.38505586]
[1673633846802,222.83,16.846,16.825,43.51524642]
[1673633847014,20.0,16.845,16.821,112.5172]
[1673633847236,64.53,16.844,16.822,29.53135586]
[1673633847437,20.0,16.843,16.822,29.53135586]
[1673633847758,155.3158,16.842,16.822,29.53135586]
[1673633847946,40.0,16.841,16.822,29.53135586]
[1673633848157,44.54,16.84,16.822,29.53135586]
[1673633848376,132.5721,16.839,16.822,29.53135586]
[1673633848585,44.55,16.838,16.822,29.53135586]
[1673633849652,44.55,16.838,16.821,112.5172]
[1673633849843,20.0,16.837,16.821,112.5172]
[1673633850053,44.55,16.836,16.821,112.5172]
[1673633852380,44.55,16.838,16.822,29.53135586]
[1673633853115,44.55,16.838,16.83,12.02]
[1673633853428,132.5721,16.839,16.83,12.02]
[1673633857943,44.55,16.838,16.83,12.02]
[1673633859006,44.55,16.838,16.822,29.53135586]
[1673633859409,64.55,16.838,16.822,29.53135586]
[1673633859944,20.0,16.837,16.821,112.5172]
[1673633860255,242.85,16.836,16.82,11.95]
[1673633860468,3.16150493,16.835,16.82,11.95]
[1673633860667,3.16150493,16.833,16.82,11.95]
[1673633860878,23.16150493,16.831,16.82,11.95]
[1673633861109,3.16150493,16.829,16.82,11.95]
[1673633861297,3.16150493,16.829,16.813,148.79895586]
[1673633861832,64.57,16.83,16.82,12.02]
[1673633862775,64.57,16.83,16.814,20.0]
[1673633862989,183.9592,16.83,16.82,12.02]
[1673633865438,139.3892,16.83,16.82,12.02]
[1673633866366,139.3892,16.83,16.817,29.53135586]
[1673633866367,2.43355604,16.829,16.817,29.53135586]
[1673633866557,2.43355604,16.829,16.82,12.02]
[1673633866768,44.57,16.829,16.82,12.02]
[1673633866978,2.41744606,16.828,16.82,12.02]
[1673633867210,44.58,16.827,16.82,12.02]
[1673633867624,2.47593243,16.826,16.82,12.02]
[1673633868027,2.47593243,16.827,16.82,12.02]
[1673633868766,2.47593243,16.828,16.82,12.02]
[1673633869396,20.0,16.829,16.82,12.02]